fUSD/lending_fUSD_20250320
["ID","MTS","AMOUNT","RATE_DAILY","PERIOD"]
[356456788,1742483446677,-151.0,0.0001164,2]
[356456789,1742483446687,-280.51392,0.0001164,2]
[356456790,1742483446697,-151.0,0.0001164,2]
[356456791,1742483446707,-151.0,0.0001164,2]
[356456792,1742483446717,-151.0,0.0001164,2]
[356456793,1742483446727,-151.0,0.0001164,2]
[356456794,1742483446736,-151.0,0.0001164,2]
[356456795,1742483446747,-1417.3286195,0.00011652,2]
[356456796,1742483446760,-904.0,0.0001166,2]
[356456797,1742483446770,-151.0,0.0001166,2]
[356456798,1742483446781,-151.0,0.0001166,2]
[356456799,1742483446790,-151.0,0.0001166,2]
[356456800,1742483446800,-631.0,0.0001166,2]
[356456801,1742483446914,-500.0,0.0001166,2]
[356456802,1742483446945,-500.0,0.0001166,2]
[356456803,1742483446955,-500.0,0.0001166,2]
[356456804,1742483446965,-500.0,0.0001166,2]
[356456805,1742483446974,-508.0,0.0001166,2]
[356456806,1742483446984,-151.0,0.0001166,2]
[356456807,1742483446994,-151.0,0.0001166,2]
[356456808,1742483447004,-151.0,0.0001166,2]
[356456809,1742483447014,-151.0,0.0001166,2]
[356456810,1742483447024,-151.0,0.0001166,2]
[356456811,1742483447034,-151.0,0.0001166,2]
[356456812,1742483447044,-151.0,0.0001166,2]
[356456813,1742483447054,-151.0,0.0001166,2]
[356456814,1742483447064,-151.0,0.0001166,2]
[356456815,1742483447073,-151.0,0.0001166,2]
[356456816,1742483447083,-152.787327,0.0001166,2]
[356456817,1742483447093,-152.27705,0.0001166,2]
[356456818,1742483447103,-151.0,0.0001166,2]
[356456819,1742483447113,-151.0,0.0001166,2]
[356456820,1742483447123,-301.970376,0.0001166,2]
[356456821,1742483447132,-151.0,0.0001166,2]
[356456822,1742483447142,-151.0,0.0001166,2]
[356456823,1742483447152,-94810.16484712,0.0001166,2]
[356456824,1742483447162,-350.0,0.00011678,2]
[356456825,1742483447172,-350.0,0.00011678,2]
[356456826,1742483447182,-152.676469,0.00011685,2]
[356456827,1742483447192,-151.0,0.00011685,2]
[356456828,1742483447202,-151.0,0.00011685,2]
[356456829,1742483447212,-151.0,0.00011685,2]
[356456830,1742483447222,-151.0,0.00011685,2]
[356456831,1742483447232,-151.0,0.00011685,2]
[356456832,1742483447242,-151.0,0.00011685,2]
[356456833,1742483447254,-151.0,0.00011685,2]
[356456834,1742483447265,-197.191592,0.00011685,2]
[356456835,1742483447275,-151.0,0.00011685,2]
[356456836,1742483447285,-151.0,0.00011685,2]
[356456837,1742483447295,-151.0,0.00011685,2]
[356456838,1742483447305,-230.023467,0.00011685,2]
[356456839,1742483447315,-151.0,0.00011685,2]
[356456840,1742483447325,-151.0,0.00011685,2]
[356456841,1742483447335,-151.0,0.00011685,2]
[356456842,1742483447345,-151.0,0.00011685,2]
[356456843,1742483447354,-151.0,0.00011685,2]
[356456844,1742483447364,-151.852213,0.00011685,2]
[356456845,1742483447374,-150.0,0.00011686,2]
[356456846,1742483447384,-150.0,0.00011686,2]
[356456847,1742483447393,-1280.0,0.00011686,2]
[356456848,1742483447404,-642.0,0.00011686,2]
[356456849,1742483447414,-2035.0,0.00011686,2]
[356456850,1742483447424,-1420.0,0.00011686,2]
[356456851,1742483447434,-572.0,0.00011686,2]
[356456852,1742483447444,-1272.0,0.00011686,2]
[356456853,1742483447454,-787.0,0.00011686,2]
[356456854,1742483447463,-1430.0,0.00011686,2]
[356456855,1742483447472,-542.0,0.00011686,2]
[356456856,1742483447482,-907.0,0.00011686,2]
[356456857,1742483447492,-4082.0,0.00011686,2]
[356456858,1742483447505,-151.0,0.00011686,2]
[356456859,1742483447515,-1014.0,0.00011686,2]
[356456860,1742483447525,-3996.198,0.00011686,2]
[356456861,1742483447535,-1115.0,0.00011686,2]
[356456862,1742483447544,-151.0,0.000117,2]
[356456863,1742483447554,-151.0,0.000117,2]
[356456864,1742483447564,-151.0,0.000117,2]
[356456865,1742483447577,-151.0,0.000117,2]
[356456866,1742483447587,-151.0,0.000117,2]
[356456867,1742483447596,-151.0,0.000117,2]
[356456868,1742483447606,-151.0,0.000117,2]
[356456869,1742483447617,-151.0,0.000117,2]
[356456870,1742483447627,-94810.16484712,0.000117,2]
[356456871,1742483447636,-151.0,0.000117,2]
[356456872,1742483447647,-7177.03,0.000117,2]
[356456873,1742483447656,-151.0,0.000117,2]
[356456874,1742483447665,-151.0,0.000117,2]
[356456875,1742483447675,-151.0,0.000117,2]
[356456876,1742483447684,-492.792956,0.000117,2]
[356456877,1742483447693,-492.792956,0.000117,2]
[356456878,1742483447703,-151.0,0.0001174,2]
[356456879,1742483447712,-151.0,0.0001174,2]
[356456880,1742483447722,-151.0,0.0001174,2]
[356456881,1742483447731,-151.0,0.0001174,2]
[356456882,1742483447740,-289.566005,0.0001174,2]
[356456883,1742483447750,-151.0,0.0001174,2]
[356456884,1742483447763,-182.888457,0.0001174,2]
[356456885,1742483447772,-94810.16484712,0.0001174,2]
[356456886,1742483447782,-151.0,0.00011748,2]
[356456887,1742483447791,-500.0,0.00011748,2]
[356456888,1742483447801,-941.0,0.00011748,2]
[356456889,1742483447811,-179.63444659,0.00011748,2]
[356456890,1742483447821,-298.7759788,0.00011748,2]
[356456891,1742483447830,-500.0,0.00011748,2]
[356456892,1742483447839,-200.0,0.00011756,2]
[356456893,1742483447849,-151.0,0.00011756,2]
[356456894,1742483447859,-151.0,0.00011756,2]
[356456895,1742483447869,-151.0,0.00011756,2]
[356456896,1742483447879,-151.0,0.00011756,2]
[356456897,1742483447888,-151.0,0.00011756,2]
[356456898,1742483447898,-500.0,0.00011775,2]
[356456899,1742483447908,-941.0,0.00011775,2]
[356456900,1742483447917,-500.0,0.00011775,2]
[356456901,1742483447927,-275.324376,0.0001178,2]
[356456902,1742483447936,-151.0,0.0001178,2]
[356456903,1742483447946,-151.0,0.0001178,2]
[356456904,1742483447956,-151.0,0.0001178,2]
[356456905,1742483447966,-94810.16484712,0.0001178,2]
[356456906,1742483447976,-500.0,0.00011803,2]
[356456907,1742483447985,-941.0,0.00011803,2]
[356456908,1742483447996,-500.0,0.00011803,2]
[356456909,1742483448008,-151.0,0.0001182,2]
[356456910,1742483448019,-151.0,0.0001182,2]
[356456911,1742483448029,-151.0,0.0001182,2]
[356456912,1742483448039,-94810.16484712,0.0001182,2]
[356456913,1742483448050,-500.0,0.0001183,2]
[356456914,1742483448060,-941.0,0.0001183,2]
[356456915,1742483448070,-575.64241555,0.0001183,2]
[356456916,1742483448080,-500.0,0.00011858,2]
[356456917,1742483448090,-941.0,0.00011858,2]
[356456918,1742483448101,-267.195939,0.00011858,2]
[356456919,1742483448111,-151.0,0.00011858,2]
[356456920,1742483448121,-151.0,0.00011858,2]
[356456921,1742483448131,-151.0,0.00011858,2]
[356456922,1742483448141,-151.0,0.00011858,2]
[356456923,1742483448152,-151.0,0.00011858,2]
[356456924,1742483448162,-151.0,0.0001186,2]
[356456925,1742483448172,-94810.16484712,0.0001186,2]
[356456926,1742483448182,-200.0,0.00011874,2]
[356456927,1742483448192,-193.28,0.00011883,2]
[356456928,1742483448202,-500.0,0.00011885,2]
[356456929,1742483448213,-941.0,0.00011885,2]
[356456930,1742483448224,-3077.63790191,0.000119,2]
[356456931,1742483448234,-94810.16484712,0.000119,2]
[356456932,1742483448245,-163.93634725,0.000119,2]
[356456933,1742483448258,-421.06695734,0.000119,2]
[356456934,1742483448269,-655.85808508,0.000119,2]
[356456935,1742483448280,-500.0,0.00011912,2]
[356456936,1742483448291,-941.0,0.00011912,2]
[356456937,1742483448301,-500.0,0.0001194,2]
[356456938,1742483448313,-941.0,0.0001194,2]
[356456939,1742483448324,-500.0,0.00011967,2]
[356456940,1742483448334,-941.0,0.00011967,2]
[356456941,1742483448344,-1000.0,0.0001197,2]
[356456942,1742483448354,-1000.0,0.0001197,2]
[356456943,1742483448364,-500.0,0.0001197,2]
[356456944,1742483448375,-1000.0,0.0001197,2]
[356456945,1742483448385,-500.0,0.0001197,2]
[356456946,1742483448395,-1000.0,0.0001197,2]
[356456947,1742483448405,-500.0,0.0001197,2]
[356456948,1742483448415,-1000.0,0.0001197,2]
[356456949,1742483448425,-500.0,0.0001197,2]
[356456950,1742483448435,-500.0,0.0001197,2]
[356456951,1742483448445,-12899.0,0.00011973,2]
[356456952,1742483448455,-203.109066,0.00011973,2]
[356456953,1742483448466,-151.0,0.00011973,2]
[356456954,1742483448477,-151.0,0.00011973,2]
[356456955,1742483448487,-151.0,0.00011973,2]
[356456956,1742483448496,-151.0,0.00011973,2]
[356456957,1742483448510,-151.0,0.00011973,2]
[356456958,1742483448519,-151.0,0.00011973,2]
[356456959,1742483448529,-151.0,0.00011973,2]
[356456960,1742483448539,-151.0,0.00011973,2]
[356456961,1742483448549,-260.882174,0.00011973,2]
[356456962,1742483448559,-492.792956,0.00011973,2]
[356456963,1742483448570,-492.792956,0.00011973,2]
[356456964,1742483448583,-6860.0629205,0.00011992,2]
[356456965,1742483448593,-6885.4480781,0.00011992,2]
[356456966,1742483448602,-6910.8332357,0.00011992,2]
[356456967,1742483448614,-151.0,0.00011992,2]
[356456968,1742483448623,-151.0,0.00011992,2]
[356456969,1742483448633,-151.0,0.00011992,2]
[356456970,1742483448643,-151.0,0.00011992,2]
[356456971,1742483448653,-151.0,0.00011992,2]
[356456972,1742483448665,-1422.5928194,0.00011992,2]
[356456973,1742483448675,-1427.8570194,0.00011992,2]
[356456974,1742483448685,-1433.1212194,0.00011992,2]
[356456975,1742483448695,-200.0,0.00011993,2]
[356456976,1742483448705,-500.0,0.00011995,2]
[356456977,1742483448715,-941.0,0.00011995,2]
[356456978,1742483448725,-6493722.24423645,0.00012,2]
[356456979,1742483448735,-9658353.04804975,0.00012,2]
[356456980,1742483448745,-249275.52157146,0.00012,2]
[356456981,1742483448756,-800.0,0.00012,2]
[356456982,1742483448766,-92870.23867462,0.00012,2]
[356456983,1742483448776,-151.0,0.00012,2]
[356456984,1742483448786,-153.875231,0.00012,2]
[356456985,1742483448796,-151.0,0.00012,2]
[356456986,1742483448807,-162.521091,0.00012,2]
[356456987,1742483448817,-211.983952,0.00012,2]
[356456988,1742483448827,-162.521091,0.00012,2]
[356456989,1742483448838,-151.0,0.00012,2]
[356456990,1742483448848,-151.0,0.00012,2]
[356456991,1742483448858,-151.0,0.00012,2]
[356456992,1742483448867,-151.0,0.00012,2]
[356456993,1742483448877,-151.0,0.00012,2]
[356456994,1742483448886,-151.0,0.00012,2]
[356456995,1742483448896,-151.0,0.00012,2]
[356456996,1742483448906,-151.0,0.00012,2]
[356456997,1742483448916,-202.091188,0.00012,2]
[356456998,1742483448927,-151.0,0.00012,2]
[356456999,1742483448937,-151.0,0.00012,2]
[356457000,1742483448947,-164.793772,0.00012,2]
[356457001,1742483448957,-152.481266,0.00012,2]
[356457002,1742483448967,-153.579541,0.00012,2]
[356457003,1742483448977,-151.0,0.00012,2]
[356457004,1742483448986,-151.0,0.00012,2]
[356457005,1742483448996,-151.0,0.00012,2]
[356457006,1742483449009,-151.0,0.00012,2]
[356457007,1742483449019,-225.448892,0.00012,2]
[356457008,1742483449028,-151.0,0.00012,2]
[356457009,1742483449038,-151.0,0.00012,2]
[356457010,1742483449049,-151.0,0.00012,2]
[356457011,1742483449059,-151.0,0.00012,2]
[356457012,1742483449069,-492.792956,0.00012,2]
[356457013,1742483449079,-492.792956,0.00012,2]
[356457014,1742483449089,-492.792956,0.00012,2]
[356457015,1742483449099,-492.792956,0.00012,2]
[356457016,1742483449109,-492.792956,0.00012,2]
[356457017,1742483449118,-492.792956,0.00012,2]
[356457018,1742483449129,-492.792956,0.00012,2]
[356457019,1742483449139,-492.792956,0.00012,2]
[356457020,1742483449149,-168.15,0.00012005,2]
[356457021,1742483449159,-500.0,0.00012022,2]
[356457022,1742483449169,-941.0,0.00012022,2]
[356457023,1742483449179,-1000.0,0.00012047,2]
[356457024,1742483449189,-500.0,0.00012049,2]
[356457025,1742483449200,-941.0,0.00012049,2]
[356457026,1742483449210,-500.0,0.00012077,2]
[356457027,1742483449220,-941.0,0.00012077,2]
[356457028,1742483449230,-911.3199822,0.00012104,2]
[356457029,1742483449240,-941.0,0.00012104,2]
[356457030,1742483449250,-941.0,0.00012132,2]
[356457031,1742483449263,-941.0,0.00012159,2]
[356457032,1742483449274,-941.0,0.00012186,2]
[356457033,1742483449285,-941.0,0.00012214,2]
[356457034,1742483449295,-941.0,0.00012241,2]
[356457035,1742483449305,-945.92227539,0.00012269,2]
[356457036,1742483449316,-255.0,0.00012351,2]
[356457037,1742483449326,-295.52294153,0.000125,2]
[356457038,1742483449336,-10000.0,0.000125,3]
[356457039,1742483449346,-168.15,0.000126,2]
[356457040,1742483449357,-401.44,0.00012893,2]
[356457041,1742483449367,-27893.63788518,0.00012908,2]
[356457042,1742483449376,-162.521091,0.00012908,2]
[356457043,1742483449386,-151.0,0.00012908,2]
[356457044,1742483449396,-151.0,0.00012908,2]
[356457045,1742483449450,-500.0,0.00012908,2]
[356457046,1742483449460,-500.0,0.00012908,2]
[356457047,1742483449470,-500.0,0.00012908,2]
[356457048,1742483449479,-500.0,0.00012908,2]
[356457049,1742483449488,-500.0,0.00012908,2]
[356457050,1742483449498,-500.0,0.00012908,2]
[356457051,1742483449508,-500.0,0.00012908,2]
[356457052,1742483449518,-500.0,0.00012908,2]
[356457053,1742483449527,-500.0,0.00012908,2]
[356457054,1742483449537,-500.0,0.00012908,2]
[356457055,1742483449546,-500.0,0.00012908,2]
[356457056,1742483449555,-500.0,0.00012908,2]
[356457057,1742483449565,-500.0,0.00012908,2]
[356457058,1742483449577,-500.0,0.00012908,2]
[356457059,1742483449587,-500.0,0.00012908,2]
[356457060,1742483449597,-500.0,0.00012908,2]
[356457061,1742483449607,-500.0,0.00012908,2]
[356457062,1742483449616,-500.0,0.00012908,2]
[356457063,1742483449626,-500.0,0.00012908,2]
[356457064,1742483449635,-500.0,0.00012908,2]
[356457065,1742483449645,-500.0,0.00012908,2]
[356457066,1742483449656,-500.0,0.00012908,2]
[356457067,1742483449665,-500.0,0.00012908,2]
[356457068,1742483449675,-500.0,0.00012908,2]
[356457069,1742483449685,-500.0,0.00012908,2]
[356457070,1742483449694,-500.0,0.00012908,2]
[356457071,1742483449703,-500.0,0.00012908,2]
[356457072,1742483449712,-500.0,0.00012908,2]
[356457073,1742483449721,-500.0,0.00012908,2]
[356457074,1742483449731,-500.0,0.00012908,2]
[356457075,1742483449741,-500.0,0.00012908,2]
[356457076,1742483449751,-500.0,0.00012908,2]
[356457077,1742483449762,-500.0,0.00012908,2]
[356457078,1742483449771,-500.0,0.00012908,2]
[356457079,1742483449781,-500.0,0.00012908,2]
[356457080,1742483449790,-500.0,0.00012908,2]
[356457081,1742483449800,-500.0,0.00012908,2]
[356457082,1742483449809,-500.0,0.00012908,2]
[356457083,1742483449818,-500.0,0.00012908,2]
[356457084,1742483449827,-500.0,0.00012908,2]
[356457085,1742483449837,-500.0,0.00012908,2]
[356457086,1742483449846,-500.0,0.00012908,2]
[356457087,1742483449855,-500.0,0.00012908,2]
[356457088,1742483449864,-500.0,0.00012908,2]
[356457089,1742483449873,-500.0,0.00012908,2]
[356457090,1742483449882,-500.0,0.00012908,2]
[356457091,1742483449892,-500.0,0.00012908,2]
[356457092,1742483449901,-500.0,0.00012908,2]
[356457093,1742483449910,-911.0,0.00012908,2]
[356457094,1742483449920,-500.0,0.00012908,2]
[356457095,1742483449930,-500.0,0.00012908,2]
[356457096,1742483449939,-500.0,0.00012908,2]
[356457097,1742483449948,-500.0,0.00012908,2]
[356457098,1742483449958,-500.0,0.00012908,2]
[356457099,1742483449967,-500.0,0.00012908,2]
[356457100,1742483449976,-500.0,0.00012908,2]
[356457101,1742483449985,-500.0,0.00012908,2]
[356457102,1742483449994,-869.0,0.00012908,2]
[356457103,1742483450004,-151.0,0.00012908,2]
[356457104,1742483450014,-151.0,0.00012908,2]
[356457105,1742483450023,-492.792956,0.00012908,2]
[356457106,1742483450034,-492.792956,0.00012908,2]
[356457107,1742483450044,-3047.19503509,0.00013,2]
[356457108,1742483450053,-581.71,0.00013011,2]
[356457109,1742483450063,-193.28,0.00013203,2]
[356457110,1742483450077,-151.30495365,0.00013317,5]
[356457111,1742483450087,-162.521091,0.00013368,2]
[356457112,1742483450097,-151.0,0.00013368,2]
[356457113,1742483450106,-193.75794,0.00013368,2]
[356457114,1742483450116,-151.0,0.00013368,2]
[356457115,1742483450125,-151.0,0.00013368,2]
[356457116,1742483450135,-492.792956,0.00013368,2]
[356457117,1742483450145,-492.792956,0.00013368,2]
[356457118,1742483450155,-48395.80917915,0.00013368,2]
[356457119,1742483450165,-1000.0,0.00013385,2]
[356457120,1742483450175,-1000.0,0.0001347,2]
[356457121,1742483450184,-500.0,0.0001347,2]
[356457122,1742483450194,-1000.0,0.000135,2]
[356457123,1742483450204,-10000.0,0.000135,2]
[356457124,1742483450214,-433.0,0.00013504,2]
[356457125,1742483450223,-500.0,0.00013699,2]
[356457126,1742483450232,-31355.92,0.00013699,2]
[356457127,1742483450242,-27477.23,0.00013699,2]
[356457128,1742483450252,-15394.02,0.00013699,2]
[356457129,1742483450262,-644.28,0.00013699,2]
[356457130,1742483450272,-200.0,0.00013699,2]
[356457131,1742483450281,-500.0,0.00013699,2]
[356457132,1742483450291,-500.0,0.00013699,2]
[356457133,1742483450301,-626.37383213,0.00013699,2]
[356457134,1742483450311,-317.35003382,0.00013699,2]
[356457135,1742483450320,-160.063232,0.00013699,2]
[356457136,1742483450329,-500.0,0.00013699,2]
[356457137,1742483450339,-500.0,0.00013699,2]
[356457138,1742483450348,-161.04400461,0.00013699,2]
[356457139,1742483450357,-500.4244151,0.00013699,2]
[356457140,1742483450367,-151.26967411,0.00013699,2]
[356457141,1742483450376,-213.24061825,0.00013699,2]
[356457142,1742483450386,-160.32601429,0.00013699,2]
[356457143,1742483450396,-646.83157923,0.00013699,2]
[356457144,1742483450406,-312.88613171,0.00013699,2]
[356457145,1742483450416,-420.32459879,0.00013699,2]
[356457146,1742483450426,-500.0,0.00013699,2]
[356457147,1742483450435,-300.54390808,0.00013699,2]
[356457148,1742483450444,-151.26967411,0.00013699,2]
[356457149,1742483450454,-158.41442771,0.00013699,2]
[356457150,1742483450463,-151.56550101,0.00013699,2]
[356457151,1742483450473,-500.0,0.00013699,2]
[356457152,1742483450482,-453.31304528,0.00013699,2]
[356457153,1742483450492,-500.0,0.00013699,2]
[356457154,1742483450501,-162.521091,0.00013699,2]
[356457155,1742483450512,-151.0,0.00013699,2]
[356457156,1742483450522,-151.0,0.00013699,2]
[356457157,1742483450531,-151.0,0.00013699,2]
[356457158,1742483450541,-151.0,0.00013699,2]
[356457159,1742483450551,-151.0,0.00013699,2]
[356457160,1742483450564,-492.792956,0.00013699,2]
[356457161,1742483450575,-492.792956,0.00013699,2]
[356457162,1742483450585,-492.792956,0.00013699,2]
[356457163,1742483450595,-492.792955,0.00013699,2]
[356457164,1742483450605,-500.0,0.00013699,2]
[356457165,1742483450614,-500.0,0.00013699,2]
[356457166,1742483450624,-500.0,0.00013699,2]
[356457167,1742483450634,-500.0,0.00013699,2]
[356457168,1742483450646,-500.0,0.00013699,2]
[356457169,1742483450657,-500.0,0.00013699,2]
[356457170,1742483450666,-500.0,0.00013699,2]
[356457171,1742483450676,-500.0,0.00013699,2]
[356457172,1742483450685,-500.0,0.00013699,2]
[356457173,1742483450695,-500.0,0.00013699,2]
[356457174,1742483450704,-500.0,0.00013699,2]
[356457175,1742483450714,-500.0,0.00013699,2]
[356457176,1742483450723,-500.0,0.00013699,2]
[356457177,1742483450732,-500.0,0.00013699,2]
[356457178,1742483450742,-500.0,0.00013699,2]
[356457179,1742483450751,-500.0,0.00013699,2]
[356457180,1742483450763,-500.0,0.00013699,2]
[356457181,1742483450772,-500.0,0.00013699,2]
[356457182,1742483450781,-500.0,0.00013699,2]
[356457183,1742483450791,-500.0,0.00013699,2]
[356457184,1742483450801,-500.0,0.00013699,2]
[356457185,1742483450810,-500.0,0.00013699,2]
[356457186,1742483450820,-500.0,0.00013699,2]
[356457187,1742483450830,-500.0,0.00013699,2]
[356457188,1742483450839,-500.0,0.00013699,2]
[356457189,1742483450849,-500.0,0.00013699,2]
[356457190,1742483450860,-500.0,0.00013699,2]
[356457191,1742483450869,-500.0,0.00013699,2]
[356457192,1742483450879,-500.0,0.00013699,2]
[356457193,1742483450889,-500.0,0.00013699,2]
[356457194,1742483450899,-500.0,0.00013699,2]
[356457195,1742483450908,-500.0,0.00013699,2]
[356457196,1742483450918,-500.0,0.00013699,2]
[356457197,1742483450927,-500.0,0.00013699,2]
[356457198,1742483450937,-500.0,0.00013699,2]
[356457199,1742483450946,-500.0,0.00013699,2]
[356457200,1742483450956,-500.0,0.000137,2]
[356457201,1742483450965,-17383.81,0.000137,2]
[356457202,1742483450975,-17383.81,0.000137,2]
[356457203,1742483450985,-3982.20215989,0.00014,2]
[356457204,1742483450994,-401.44,0.00014182,2]
[356457205,1742483451004,-9900.97336768,0.0001439,2]
[356457206,1742483451013,-2087.33,0.00014454,2]
[356457207,1742483451023,-193.28,0.00014523,2]
[356457208,1742483451034,-150.0,0.00014686,2]
[356457209,1742483451045,-1280.0,0.00014686,2]
[356457210,1742483451055,-642.0,0.00014686,2]
[356457211,1742483451064,-2035.0,0.00014686,2]
[356457212,1742483451074,-1420.0,0.00014686,2]
[356457213,1742483451084,-572.0,0.00014686,2]
[356457214,1742483451093,-1272.0,0.00014686,2]
[356457215,1742483451103,-787.0,0.00014686,2]
[356457216,1742483451113,-1430.0,0.00014686,2]
[356457217,1742483451124,-542.0,0.00014686,2]
[356457218,1742483451134,-907.0,0.00014686,2]
[356457219,1742483451144,-4082.0,0.00014686,2]
[356457220,1742483451154,-151.0,0.00014686,2]
[356457221,1742483451165,-1014.0,0.00014686,2]
[356457222,1742483451175,-3938.0,0.00014686,2]
[356457223,1742483451186,-403.76,0.00014686,2]
[356457224,1742483451196,-1000.0,0.00014724,2]
[356457225,1742483451206,-736.0,0.00014758,2]
[356457226,1742483451216,-7500.0,0.00015,2]
[356457227,1742483451226,-5313.91411507,0.00015,14]
[356457228,1742483451236,-150.0,0.00015,20]
[356457229,1742483451246,-300.0,0.00015068,2]
[356457230,1742483451257,-1231.69420413,0.00015146,15]
[356457231,1742483451267,-581.71,0.00015275,2]
[356457232,1742483451277,-487.43015122,0.000154,2]
[356457233,1742483451288,-401.44,0.00015472,2]
[356457234,1742483451298,-193.28,0.00015844,2]
[356457235,1742483451309,-27879.79987507,0.00016,2]
[356457236,1742483451318,-3034.06889788,0.00016,8]
[356457237,1742483451329,-1000.0,0.00016063,2]
[356457238,1742483451338,-757.0,0.00016125,2]
[356457239,1742483451349,-1000.0,0.00016179,2]
[356457240,1742483451358,-200.0,0.0001634,2]
[356457241,1742483451368,-11953.09,0.00016411,2]
[356457242,1742483451378,-526.234,0.00016438,2]
[356457243,1742483451388,-300.0,0.00016438,2]
[356457244,1742483451398,-202.36,0.00016438,2]
[356457245,1742483451408,-517.83964,0.0001654,5]
[356457246,1742483451418,-188.02,0.00016712,2]
[356457247,1742483451428,-644.28,0.00016895,2]
[356457248,1742483451438,-4042.1,0.00016922,2]
[356457249,1742483451448,-500.0,0.00017052,2]
[356457250,1742483451458,-581.71,0.00017539,2]
[356457251,1742483451467,-150.0,0.00017686,2]
[356457252,1742483451477,-1280.0,0.00017686,2]
[356457253,1742483451487,-642.0,0.00017686,2]
[356457254,1742483451497,-2035.0,0.00017686,2]
[356457255,1742483451508,-1420.0,0.00017686,2]
[356457256,1742483451518,-572.0,0.00017686,2]
[356457257,1742483451528,-1272.0,0.00017686,2]
[356457258,1742483451537,-787.0,0.00017686,2]
[356457259,1742483451547,-1430.0,0.00017686,2]
[356457260,1742483451557,-542.0,0.00017686,2]
[356457261,1742483451568,-907.0,0.00017686,2]
[356457262,1742483451581,-4082.0,0.00017686,2]
[356457263,1742483451590,-151.0,0.00017686,2]
[356457264,1742483451600,-1014.0,0.00017686,2]
[356457265,1742483451610,-3938.0,0.00017686,2]
[356457266,1742483451621,-600.0,0.00017808,2]
[356457267,1742483451632,-1141.19122485,0.00018,2]
[356457268,1742483451642,-200.0,0.00018082,2]
[356457269,1742483451654,-1706.6090723,0.000181,2]
[356457270,1742483451664,-157.96,0.000186,2]
[356457271,1742483451674,-935.75326943,0.00019,2]
[356457272,1742483451683,-487.68756579,0.00019,2]
[356457273,1742483451693,-5204.73913914,0.00019,2]
[356457274,1742483451703,-105819.77227962,0.00019,2]
[356457275,1742483451712,-1000.0,0.0001902,2]
[356457276,1742483451722,-200.411,0.00019178,60]
[356457277,1742483451732,-3243.29,0.00019178,2]
[356457278,1742483451741,-245.99334606,0.00019178,2]
[356457279,1742483451751,-1000.79591112,0.00019178,2]
[356457280,1742483451766,-719.18737885,0.00019178,2]
[356457281,1742483451776,-1000.0,0.00019178,2]
[356457282,1742483451785,-1001.60570588,0.00019178,2]
[356457283,1742483451794,-273.13722571,0.00019178,2]
[356457284,1742483451804,-571.86868611,0.00019178,2]
[356457285,1742483451813,-354.0,0.000192,2]
[356457286,1742483451823,-223969.76164537,0.000196,2]
[356457287,1742483451833,-3302.24491178,0.0001961,2]